[Event "WSTCC-50 2020"]
[Site "Prague"]
[Date "2020.03.06"]
[Round "1.39"]
[White "Musil, Martin"]
[Black "Mudrak, Josef"]
[Result "0-1"]
[ECO "B34"]
[WhiteElo "1937"]
[BlackElo "2213"]
[Annotator "ChessBase"]
[PlyCount "52"]
[EventDate "2020.03.06"]
[EventType "team-tourn"]
[EventCountry "CZE"]
[SourceTitle "playchess.com"]
[Source "ChessBase"]
[SourceQuality "1"]
[TimeControl "40/5400+30:1800+30"]

1. e4 {[%emt 0:00:00]} c5 {[%emt 0:00:00]} 2. Nf3 {[%emt 0:00:00]} Nc6 {[%emt 0:00:15]} 3. d4 {[%emt 0:00:00]} cxd4 {[%emt 0:00:18]} 4. Nxd4 {[%emt 0:00:00]} Nf6 {[%emt 0:00:24]} 5. Nc3 {[%emt 0:00:09]} e5 {[%emt 0:00:20]} 6. Nb3 {[%emt 0:01:40]} Bb4 {[%emt 0:00:34]} 7. Bd3 {[%emt 0:11:12]} d5 {[%emt 0:03:24]} 8. exd5 {[%emt 0:01:25]} Nxd5 {[%emt 0:01:04]} 9. Bd2 {[%emt 0:00:38]} Nxc3 {[%emt 0:01:16]} 10. bxc3 {[%emt 0:00:09]} Be7 {[%emt 0:00:36]} 11. O-O {[%emt 0:00:19]} O-O {[%emt 0:00:31]} 12. Re1 {[%emt 0:03:40]} f5 {[%emt 0:04:31]} 13. Qh5 {[%emt 0:07:59]} Be6 {[%emt 0:04:12]} 14. Rad1 {[%emt 0:01:11]} Qc7 {[%emt 0:07:26]} 15. Qe2 {[%emt 0:16:50]} Bd6 {[%emt 0:10:15]} 16. h3 {[%emt 0:03:21]} Rae8 {[%emt 0:09:38]} 17. Bc4 {[%emt 0:01:41]} Kh8 {[%emt 0:08:38]} 18. Bxe6 {[%emt 0:07:14]} Rxe6 {[%emt 0:00:17]} 19. Qd3 {[%emt 0:00:17]} Rg6 {[%emt 0:01:16]} 20. c4 {[%emt 0:05:15]} e4 {[%emt 0:01:26]} 21. Qe3 {[%emt 0:13:39]} b6 {[%emt 0:05:29]} 22. Bc3 {[%emt 0:03:52]} Be5 {[%emt 0:06:24]} 23. Rd5 {[%emt 0:04:46]} f4 {[%emt 0:03:11]} 24. Qd2 {[%emt 0:01:57]} e3 {[%emt 0:00:45]} 25. fxe3 {[%emt 0:04:39]} Bxc3 {[%emt 0:03:38]} 26. Qxc3 {[%emt 0:00:27]} f3 {[%emt 0:00:14]} 0-1

[Event "WSTCC-50 2020"]
[Site "Prague"]
[Date "2020.03.06"]
[Round "1.40"]
[White "Vrana, Frantisek"]
[Black "Postupa, Pavel"]
[Result "1/2-1/2"]
[ECO "C67"]
[WhiteElo "2231"]
[BlackElo "2217"]
[Annotator "ChessBase"]
[PlyCount "98"]
[EventDate "2020.03.06"]
[EventType "team-tourn"]
[EventCountry "CZE"]
[SourceTitle "playchess.com"]
[Source "ChessBase"]
[SourceQuality "1"]
[TimeControl "40/5400+30:1800+30"]

1. e4 {[%emt 0:00:00]} e5 {[%emt 0:00:00]} 2. Nf3 {[%emt 0:00:00]} Nc6 {[%emt 0:00:05]} 3. Bb5 {[%emt 0:01:12]} Nf6 {[%emt 0:00:25]} 4. O-O {[%emt 0:03:12]} Nxe4 {[%emt 0:00:41]} 5. Re1 {[%emt 0:00:35]} Nd6 {[%emt 0:00:13]} 6. Nxe5 {[%emt 0:00:21]} Nxe5 {[%emt 0:01:38]} 7. Rxe5+ {[%emt 0:00:12]} Be7 {[%emt 0:00:01]} 8. Bf1 {[%emt 0:02:16]} O-O {[%emt 0:00:31]} 9. Nc3 {[%emt 0:01:43]} Bf6 {[%emt 0:01:11]} 10. Re1 {[%emt 0:01:48]} c6 {[%emt 0:00:58]} 11. d4 {[%emt 0:01:39]} Re8 {[%emt 0:02:15]} 12. Bf4 {[%emt 0:07:09]} Rxe1 {[%emt 0:14:51]} 13. Qxe1 {[%emt 0:00:05]} Ne8 {[%emt 0:00:16]} 14. d5 {[%emt 0:04:25]} d6 {[%emt 0:02:25]} 15. dxc6 {[%emt 0:03:29]} bxc6 {[%emt 0:00:08]} 16. Bd3 {[%emt 0:00:31]} g6 {[%emt 0:05:39]} 17. Rd1 {[%emt 0:04:19]} Be6 {[%emt 0:09:24]} 18. Be4 {[%emt 0:05:10]} d5 {[%emt 0:04:37]} 19. Na4 {[%emt 0:02:28]} Ng7 {[%emt 0:06:40]} 20. b3 {[%emt 0:08:10]} Qe7 {[%emt 0:08:15]} 21. Bf3 {[%emt 0:02:27]} Nf5 {[%emt 0:01:37]} 22. Be3 {[%emt 0:10:29]} Nxe3 {[%emt 0:02:18]} 23. Qxe3 {[%emt 0:00:15]} Bf5 {[%emt 0:01:40]} 24. Qd2 {[%emt 0:02:21]} Rd8 {[%emt 0:04:55]} 25. b4 {[%emt 0:03:32]} Bg5 {[%emt 0:04:37]} 26. Qc3 {[%emt 0:00:44]} d4 {[%emt 0:01:04]} 27. Qc4 {[%emt 0:05:54]} Be6 {[%emt 0:01:12]} 28. Qc5 {[%emt 0:01:06]} Qxc5 {[%emt 0:08:00]} 29. Nxc5 {[%emt 0:00:47]} Bf5 {[%emt 0:00:32]} 30. Be4 {[%emt 0:03:29]} Bxe4 {[%emt 0:01:08]} 31. Nxe4 {[%emt 0:00:03]} Be7 {[%emt 0:00:09]} 32. a3 {[%emt 0:13:12]} f5 {[%emt 0:03:12]} 33. Ng3 {[%emt 0:00:50]} a5 {[%emt 0:02:03]} 34. Ne2 {[%emt 0:01:38]} axb4 {[%emt 0:02:12]} 35. axb4 {[%emt 0:00:03]} Bf6 {[%emt 0:02:14]} 36. Kf1 {[%emt 0:05:13]} Rd5 {[%emt 0:01:47]} 37. Ke1 {[%emt 0:02:16]} Be7 {[%emt 0:01:02]} 38. Rxd4 {[%emt 0:00:32]} Rxd4 {[%emt 0:00:12]} 39. Nxd4 {[%emt 0:00:02]} Bxb4+ {[%emt 0:00:01]} 40. Ke2 {[%emt 0:00:00]} c5 {[%emt 0:00:00]} 41. Nc6 {[%emt 0:00:36]} Bc3 {[%emt 0:01:43]} 42. Kd3 {[%emt 0:00:15]} Be1 {[%emt 0:00:02]} 43. f3 {[%emt 0:00:29]} h5 {[%emt 0:00:50]} 44. Kc4 {[%emt 0:00:24]} Bf2 {[%emt 0:00:01]} 45. Ne5 {[%emt 0:00:54]} Kg7 {[%emt 0:00:09]} 46. Nd3 {[%emt 0:00:04]} Bg1 {[%emt 0:00:15]} 47. h3 {[%emt 0:00:09]} Kf6 {[%emt 0:01:01]} 48. Nxc5 {[%emt 0:05:08]} Kg5 49. Ne6+ Kh4 1/2-1/2

[Event "WSTCC-50 2020"]
[Site "Prague"]
[Date "2020.03.06"]
[Round "1.42"]
[White "Goldmane, Astra"]
[Black "Dolgitser, Konstantin"]
[Result "1/2-1/2"]
[ECO "B22"]
[WhiteElo "2015"]
[BlackElo "2232"]
[Annotator "ChessBase"]
[PlyCount "59"]
[EventDate "2020.03.06"]
[EventType "team-tourn"]
[EventCountry "CZE"]
[SourceTitle "playchess.com"]
[Source "ChessBase"]
[SourceQuality "1"]
[TimeControl "40/5400+30:1800+30"]

1. e4 c5 2. c3 Nf6 3. e5 Nd5 4. d4 cxd4 5. Nf3 Nc6 6. cxd4 d6 7. Bc4 e6 8. O-O Be7 9. exd6 Bxd6 10. Nc3 Nxc3 11. bxc3 O-O 12. Bd3 h6 13. Bd2 e5 14. Be4 Bg4 15. h3 Bxf3 16. Qxf3 exd4 17. Bxc6 bxc6 18. cxd4 Rc8 19. Rfd1 Bc7 20. Bb4 Re8 21. Rac1 Qd7 22. Bc5 Bb6 23. Rd3 Red8 24. Rdc3 Bxc5 25. Rxc5 Qxd4 26. Rxc6 Rxc6 27. Qxc6 Qd2 28. Qc2 Qf4 29. Rd1 Rxd1+ {Qf5} 30. Qxd1 1/2-1/2

[Event "WSTCC-50 2020"]
[Site "Prague"]
[Date "2020.03.06"]
[Round "1.43"]
[White "Koganov, Mikhail"]
[Black "Harlinska, Sandra"]
[Result "1/2-1/2"]
[ECO "A05"]
[WhiteElo "2085"]
[BlackElo "1817"]
[Annotator "ChessBase"]
[PlyCount "57"]
[EventDate "2020.03.06"]
[EventType "team-tourn"]
[EventCountry "CZE"]
[SourceTitle "playchess.com"]
[Source "ChessBase"]
[SourceQuality "1"]
[TimeControl "40/5400+30:1800+30"]

1. Nf3 {[%emt 0:00:06]} Nf6 {[%emt 0:00:00]} 2. c4 {[%emt 0:00:31]} g6 {[%emt 0:00:00]} 3. Nc3 {[%emt 0:01:53]} d5 {[%emt 0:01:03]} 4. cxd5 {[%emt 0:05:12]} Nxd5 {[%emt 0:00:06]} 5. Qa4+ {[%emt 0:00:20]} c6 {[%emt 0:19:07]} 6. Qd4 {[%emt 0:01:27]} Nf6 {[%emt 0:00:13]} 7. Qxd8+ {[%emt 0:01:08]} Kxd8 {[%emt 0:00:02]} 8. e4 {[%emt 0:01:12]} Nbd7 {[%emt 0:02:19]} 9. Bc4 {[%emt 0:01:05]} e6 {[%emt 0:01:43]} 10. O-O {[%emt 0:10:44]} b5 {[%emt 0:05:03]} 11. Bb3 {[%emt 0:03:16]} b4 {[%emt 0:05:04]} 12. e5 {[%emt 0:00:51]} Ng4 {[%emt 0:06:36]} 13. Ne4 {[%emt 0:01:00]} Ngxe5 {[%emt 0:01:02]} 14. Nxe5 {[%emt 0:03:06]} Nxe5 {[%emt 0:00:12]} 15. d4 {[%emt 0:00:49]} Nd7 {[%emt 0:01:12]} 16. Bg5+ {[%emt 0:00:59]} Be7 {[%emt 0:07:58]} 17. Rfc1 {[%emt 0:01:10]} h6 {[%emt 0:08:57]} 18. Bf4 {[%emt 0:06:23]} g5 {[%emt 0:07:48]} 19. Be3 {[%emt 0:08:51]} Nb6 {[%emt 0:07:25]} 20. Nc5 {[%emt 0:02:48]} Bd7 {[%emt 0:09:06]} 21. Nd3 {[%emt 0:01:05]} f6 {[%emt 0:00:39]} 22. Nc5 {[%emt 0:13:08]} Bxc5 {[%emt 0:00:11]} 23. Rxc5 {[%emt 0:01:38]} a5 {[%emt 0:01:35]} 24. Rac1 {[%emt 0:02:24]} Ke7 {[%emt 0:00:47]} 25. Kf1 {[%emt 0:01:32]} Rhd8 {[%emt 0:05:21]} 26. Bd1 {[%emt 0:03:04]} Be8 {[%emt 0:01:58]} 27. Bf3 {[%emt 0:03:55]} Nd5 {[%emt 0:00:09]} 28. Bxd5 {[%emt 0:02:40]} Rxd5 {[%emt 0:00:22]} 29. Rxd5 {[%emt 0:00:32]} 1/2-1/2

[Event "WSTCC-50 2020"]
[Site "Prague"]
[Date "2020.03.06"]
[Round "1.47"]
[White "Koblasa, Josef"]
[Black "Yakimenko, Alexander A."]
[Result "1/2-1/2"]
[ECO "A25"]
[WhiteElo "1938"]
[BlackElo "2149"]
[Annotator "ChessBase"]
[PlyCount "93"]
[EventDate "2020.03.06"]
[EventType "team-tourn"]
[EventCountry "CZE"]
[SourceTitle "playchess.com"]
[Source "ChessBase"]
[SourceQuality "1"]
[TimeControl "40/5400+30:1800+30"]

1. c4 e5 2. Nc3 Nc6 3. g3 g6 4. Bg2 Bg7 5. e4 d6 6. d3 Nd4 7. Nge2 Bg4 8. h3 Bf3 9. Kf1 Bxg2+ 10. Kxg2 Nxe2 11. Qxe2 Qd7 12. Be3 Ne7 13. Qd2 O-O 14. Bh6 f5 15. Bxg7 Kxg7 16. f3 Nc6 17. Raf1 Rf7 18. Rf2 Raf8 19. Rhf1 f4 20. g4 Qe7 21. Kh2 Nd4 22. Rg2 g5 23. Qf2 Rh8 24. Rh1 h5 25. Kg1 Kf8 26. Ne2 Ne6 27. d4 Rfh7 28. Rgh2 Qg7 29. d5 Nd4 30. Nc3 a6 31. Qg2 Qd7 32. Ne2 hxg4 33. hxg4 Rxh2 34. Rxh2 Rxh2 35. Kxh2 Qh7+ 36. Kg1 Qh4 37. Qf2 Qh3 38. Nxd4 exd4 39. Qxd4 Qg3+ 40. Kf1 Qxf3+ 41. Ke1 Kf7 42. e5 Qg3+ 43. Kd2 Qg2+ 44. Kc3 Qg3+ 45. Kd2 Qg2+ 46. Kc3 Qg3+ 47. Kd2 1/2-1/2

[Event "WSTCC-50 2020"]
[Site "Prague"]
[Date "2020.03.06"]
[Round "1.48"]
[White "Chudinovskikh, Alexander M"]
[Black "Kozak, Karel"]
[Result "1-0"]
[ECO "B09"]
[WhiteElo "2139"]
[BlackElo "1856"]
[Annotator "ChessBase"]
[PlyCount "69"]
[EventDate "2020.03.06"]
[EventType "team-tourn"]
[EventCountry "CZE"]
[SourceTitle "playchess.com"]
[Source "ChessBase"]
[SourceQuality "1"]
[TimeControl "40/5400+30:1800+30"]

1. e4 {[%emt 0:00:00]} d6 {[%emt 0:00:00]} 2. d4 {[%emt 0:00:00]} g6 {[%emt 0:00:00]} 3. Nc3 {[%emt 0:00:00]} Bg7 {[%emt 0:00:06]} 4. f4 {[%emt 0:00:13]} Nf6 {[%emt 0:00:31]} 5. Bd3 {[%emt 0:00:17]} O-O {[%emt 0:00:26]} 6. Nf3 {[%emt 0:00:19]} c6 {[%emt 0:02:14]} 7. O-O {[%emt 0:00:24]} b5 {[%emt 0:03:23]} 8. a3 {[%emt 0:00:29]} Qb6 {[%emt 0:03:17]} 9. Kh1 {[%emt 0:02:35]} a5 {[%emt 0:06:20]} 10. Qe1 {[%emt 0:02:06]} Bb7 {[%emt 0:07:12]} 11. Qh4 {[%emt 0:00:20]} b4 {[%emt 0:10:27]} 12. Ne2 {[%emt 0:04:54]} c5 {[%emt 0:06:54]} 13. e5 {[%emt 0:00:20]} Ne8 {[%emt 0:07:20]} 14. e6 {[%emt 0:02:06]} f5 {[%emt 0:06:37]} 15. dxc5 {[%emt 0:06:15]} dxc5 {[%emt 0:01:21]} 16. Ne5 {[%emt 0:01:46]} Nf6 {[%emt 0:00:48]} 17. Be3 {[%emt 0:00:37]} Qc7 {[%emt 0:03:08]} 18. Rad1 {[%emt 0:04:42]} Bd5 {[%emt 0:02:27]} 19. Bc4 {[%emt 0:01:02]} Bxc4 {[%emt 0:01:05]} 20. Nxc4 {[%emt 0:00:02]} Ra6 {[%emt 0:00:27]} 21. Nc1 {[%emt 0:05:08]} Rxe6 {[%emt 0:01:31]} 22. Rd3 {[%emt 0:01:38]} Ng4 {[%emt 0:02:42]} 23. Bg1 {[%emt 0:00:42]} Re4 {[%emt 0:00:57]} 24. b3 {[%emt 0:03:02]} Rxf4 {[%emt 0:01:44]} 25. Rxf4 {[%emt 0:01:29]} Qxf4 {[%emt 0:00:52]} 26. Ne2 {[%emt 0:00:40]} Qf1 {[%emt 0:01:59]} 27. Rd2 {[%emt 0:03:00]} Bf6 {[%emt 0:00:42]} 28. Qg3 {[%emt 0:00:52]} Bg5 {[%emt 0:01:06]} 29. Rd3 {[%emt 0:05:30]} Qxe2 {[%emt 0:02:50]} 30. h3 {[%emt 0:00:00]} Qxc2 {[%emt 0:03:34]} 31. hxg4 {[%emt 0:00:13]} fxg4 {[%emt 0:01:18]} 32. Rd5 {[%emt 0:01:22]} Bf4 {[%emt 0:01:31]} 33. Qxg4 {[%emt 0:04:14]} Qxb3 {[%emt 0:04:16]} 34. Qe6+ {[%emt 0:03:55]} Rf7 35. Ne5 {[%emt 0:02:05]} 1-0

[Event "WSTCC-50 2020"]
[Site "Prague"]
[Date "2020.03.07"]
[Round "2.19"]
[White "Scheckenbach, Franz"]
[Black "Goriatchkin, Jouri"]
[Result "0-1"]
[ECO "C00"]
[WhiteElo "2101"]
[BlackElo "2310"]
[Annotator "RC"]
[PlyCount "132"]
[EventDate "2020.03.06"]
[EventType "team-tourn"]
[EventCountry "CZE"]
[SourceTitle "playchess.com"]
[Source "ChessBase"]
[SourceQuality "1"]
[TimeControl "40/5400+30:1800+30"]

1. e4 {[%emt 0:00:00]} e6 {[%emt 0:00:00]} 2. d3 {[%emt 0:00:00]} d5 {[%emt 0:00:07]} 3. Qe2 {[%emt 0:00:30]} Nf6 {[%emt 0:02:13]} 4. g3 {[%emt 0:01:26]} dxe4 {[%emt 0:03:35]} 5. dxe4 {[%emt 0:00:13]} e5 {[%emt 0:00:02]} 6. Nf3 {[%emt 0:03:39]} Nc6 {[%emt 0:01:16]} 7. Bg2 {[%emt 0:01:36]} Bg4 {[%emt 0:06:26]} 8. c3 {[%emt 0:06:48]} Qd7 {[%emt 0:07:11]} 9. Bg5 {[%emt 0:07:07]} Be7 {[%emt 0:01:35]} 10. Nbd2 {[%emt 0:03:32]} h6 {[%emt 0:03:36]} 11. Be3 {[%emt 0:02:27]} Bh3 {[%emt 0:03:46]} 12. Bxh3 {[%emt 0:06:57]} Qxh3 {[%emt 0:00:02]} 13. Nh4 {[%emt 0:00:13]} O-O-O {[%emt 0:06:06]} 14. f3 {[%emt 0:07:47]} Nh5 {[%emt 0:06:23]} 15. Nf5 {[%emt 0:02:00]} Bf6 {[%emt 0:03:42]} 16. Bf2 {[%emt 0:04:38]} Bg5 {[%emt 0:02:12]} 17. Ne3 {[%emt 0:02:45]} Bxe3 {[%emt 0:01:16]} 18. Qxe3 {[%emt 0:00:19]} Rd7 {[%emt 0:05:16]} 19. O-O-O {[%emt 0:14:50]} Rhd8 {[%emt 0:00:40]} 20. Qe1 {[%emt 0:03:00]} Qe6 {[%emt 0:05:41]} 21. Kb1 {[%emt 0:00:55]} Rd3 {[%emt 0:06:10]} 22. Qe2 {[%emt 0:02:13]} Qd7 {[%emt 0:06:22]} 23. Kc2 {[%emt 0:01:51]} Na5 {[%emt 0:09:48]} 24. Nb3 {[%emt 0:02:55]} Rxd1 {[%emt 0:00:30]} 25. Rxd1 {[%emt 0:00:08]} Qxd1+ {[%emt 0:00:16]} 26. Qxd1 {[%emt 0:00:06]} Rxd1 {[%emt 0:00:03]} 27. Kxd1 {[%emt 0:00:06]} Nxb3 {[%emt 0:00:52]} 28. axb3 {[%emt 0:00:05]} b6 {[%emt 0:01:14]} 29. Ke2 {[%emt 0:00:26]} Kd7 {[%emt 0:00:45]} 30. Kd3 {[%emt 0:00:14]} Kc6 {[%emt 0:01:22]} 31. c4 {[%emt 0:08:03]} Nf6 {[%emt 0:00:28]} 32. b4 {[%emt 0:00:21]} a6 {[%emt 0:00:41]} 33. Be1 {[%emt 0:00:47]} Nd7 {[%emt 0:06:00]} 34. Bc3 {[%emt 0:01:27]} Kd6 {[%emt 0:03:09]} 35. f4 {[%emt 0:02:16]} g6 {[%emt 0:00:49]} 36. Ke3 {[%emt 0:01:37]} Ke6 {[%emt 0:00:57]} 37. Kf3 {[%emt 0:03:54]} h5 {[%emt 0:01:09]} 38. h3 {[%emt 0:02:08]} exf4 {[%emt 0:03:24]} 39. gxf4 {[%emt 0:02:42]} b5 {[%emt 0:00:20]} 40. b3 {[%emt 0:00:00]} Nb6 {[%emt 0:00:00]} 41. cxb5 {[%emt 0:11:25]} axb5 {[%emt 0:01:31]} 42. Bd4 {[%emt 0:01:48]} Nd7 {[%emt 0:01:10]} 43. Ke3 {[%emt 0:01:36]} f5 {[%emt 0:08:12]} 44. e5 {[%emt 0:12:39]} Kd5 {[%emt 0:03:13]} 45. h4 {[%emt 0:01:06]} Nf8 {[%emt 0:01:22]} 46. Bc5 {[%emt 0:01:12]} Ne6 {[%emt 0:00:22]} 47. Ba7 {[%emt 0:00:48]} Nd8 {[%emt 0:06:20]} 48. Bc5 {[%emt 0:01:08]} Nc6 {[%emt 0:00:52]} 49. Kf3 {[%emt 0:01:17]} Nd8 {[%emt 0:01:20]} 50. Ke3 {[%emt 0:00:06]} Ne6 {[%emt 0:01:06]} 51. Ba7 {[%emt 0:00:13]} Kc6 {[%emt 0:06:47]} 52. Bd4 {[%emt 0:00:54]} Nd8 {[%emt 0:00:27]} 53. Bc5 {[%emt 0:00:57]} Kd5 {[%emt 0:00:12]} 54. Bd4 {[%emt 0:00:45]} Nc6 {[%emt 0:01:17]} 55. Bc5 {[%emt 0:00:12]} Nb8 {[%emt 0:00:31]} 56. Ba7 {[%emt 0:00:37]} Na6 {[%emt 0:01:08]} 57. Bc5 {[%emt 0:05:28]} Nxc5 {[%emt 0:01:17]} 58. bxc5 {[%emt 0:00:04]} Kxc5 {[%emt 0:00:02]} 59. b4+ {[%emt 0:00:06]} Kd5 {[%emt 0:00:13]} 60. Kd3 {[%emt 0:00:08]} c5 {[%emt 0:00:07]} 61. bxc5 {[%emt 0:00:04]} Kxc5 {[%emt 0:00:02]} 62. Kc3 {[%emt 0:00:10]} Kd5 {[%emt 0:00:15]} 63. Kb4 {[%emt 0:00:06]} g5 {[%emt 0:00:40]} 64. fxg5 {[%emt 0:01:35]} f4 65. g6 Ke6 66. g7 f3 0-1

[Event "WSTCC-50 2020"]
[Site "Prague"]
[Date "2020.03.07"]
[Round "2.27"]
[White "Chaloupka, Vladimir"]
[Black "Wolf, Volker"]
[Result "1/2-1/2"]
[ECO "A90"]
[WhiteElo "2058"]
[BlackElo "2278"]
[Annotator "ChessBase"]
[PlyCount "116"]
[EventDate "2020.03.06"]
[EventType "team-tourn"]
[EventCountry "CZE"]
[SourceTitle "playchess.com"]
[Source "ChessBase"]
[SourceQuality "1"]
[TimeControl "40/5400+30:1800+30"]

1. d4 {[%emt 0:00:00]} e6 {[%emt 0:00:00]} 2. c4 {[%emt 0:00:04]} f5 {[%emt 0:00:07]} 3. g3 {[%emt 0:00:28]} Nf6 {[%emt 0:00:08]} 4. Bg2 {[%emt 0:01:01]} d5 {[%emt 0:00:14]} 5. Nc3 {[%emt 0:01:03]} c6 {[%emt 0:00:34]} 6. Nf3 {[%emt 0:01:27]} Bd6 {[%emt 0:00:27]} 7. O-O {[%emt 0:01:39]} O-O {[%emt 0:00:47]} 8. Ne5 {[%emt 0:04:45]} Bxe5 {[%emt 0:11:55]} 9. dxe5 {[%emt 0:00:16]} Ng4 {[%emt 0:00:07]} 10. cxd5 {[%emt 0:02:35]} cxd5 {[%emt 0:04:15]} 11. b3 {[%emt 0:01:46]} Nxe5 {[%emt 0:02:40]} 12. Nb5 {[%emt 0:03:46]} a6 {[%emt 0:02:37]} 13. Nd4 {[%emt 0:02:12]} Nbc6 {[%emt 0:00:30]} 14. Bb2 {[%emt 0:01:37]} Rf7 {[%emt 0:02:09]} 15. Rc1 {[%emt 0:03:19]} Nxd4 {[%emt 0:01:53]} 16. Qxd4 {[%emt 0:01:18]} Nc6 {[%emt 0:00:12]} 17. Qd2 {[%emt 0:00:58]} Bd7 {[%emt 0:03:21]} 18. Bf3 {[%emt 0:02:56]} Be8 {[%emt 0:02:24]} 19. h4 {[%emt 0:05:31]} Rc8 {[%emt 0:03:56]} 20. Rfd1 {[%emt 0:02:21]} Rd7 {[%emt 0:02:53]} 21. b4 {[%emt 0:08:16]} Na7 {[%emt 0:02:08]} 22. Qe3 {[%emt 0:05:08]} Rxc1 {[%emt 0:02:50]} 23. Rxc1 {[%emt 0:00:11]} Nc6 {[%emt 0:00:28]} 24. Qxe6+ {[%emt 0:02:19]} Bf7 {[%emt 0:01:09]} 25. Qxf5 Nxb4 26. Qe5 {[%emt 0:07:03]} d4 {[%emt 0:02:16]} 27. a3 {[%emt 0:05:44]} Nc6 {[%emt 0:01:11]} 28. Bxc6 {[%emt 0:01:19]} bxc6 {[%emt 0:00:01]} 29. Rxc6 {[%emt 0:02:57]} Rd5 {[%emt 0:03:03]} 30. Qf4 {[%emt 0:02:32]} Qe8 {[%emt 0:10:06]} 31. Rc7 {[%emt 0:10:54]} Rd7 {[%emt 0:16:09]} 32. Rxd7 {[%emt 0:02:41]} Qxd7 {[%emt 0:00:18]} 33. Bxd4 {[%emt 0:00:13]} h6 {[%emt 0:03:29]} 34. Qe5 {[%emt 0:01:21]} Bc4 {[%emt 0:02:30]} 35. Kf1 {[%emt 0:03:34]} Qb7 {[%emt 0:03:05]} 36. Kg1 {[%emt 0:00:14]} Qd7 {[%emt 0:00:41]} 37. Bc3 {[%emt 0:00:41]} Bb5 {[%emt 0:02:14]} 38. f3 {[%emt 0:01:29]} Bc6 {[%emt 0:03:20]} 39. Kf2 {[%emt 0:00:14]} Qf7 {[%emt 0:00:40]} 40. g4 {[%emt 0:01:03]} Bb7 {[%emt 0:01:31]} 41. g5 {[%emt 0:00:23]} hxg5 {[%emt 0:02:40]} 42. Qxg5 {[%emt 0:02:00]} Bc6 {[%emt 0:01:28]} 43. h5 {[%emt 0:11:58]} Kh7 {[%emt 0:02:48]} 44. f4 {[%emt 0:02:00]} Be4 {[%emt 0:06:33]} 45. Bd4 {[%emt 0:00:58]} Bc2 {[%emt 0:02:03]} 46. Kg3 {[%emt 0:02:34]} Bb1 {[%emt 0:01:25]} 47. Kh4 {[%emt 0:01:03]} Qd7 {[%emt 0:11:53]} 48. Qe5 {[%emt 0:01:08]} Qb7 {[%emt 0:00:55]} 49. Kg3 {[%emt 0:01:04]} Bc2 {[%emt 0:02:53]} 50. f5 {[%emt 0:01:14]} Qf7 {[%emt 0:01:58]} 51. e4 {[%emt 0:02:08]} Bd1 {[%emt 0:01:23]} 52. h6 {[%emt 0:04:07]} Kxh6 {[%emt 0:00:26]} 53. Qd6+ {[%emt 0:00:41]} Kh7 {[%emt 0:01:17]} 54. Qxa6 {[%emt 0:01:21]} Qh5 {[%emt 0:01:26]} 55. Qd3 {[%emt 0:02:27]} Qg4+ {[%emt 0:03:36]} 56. Kf2 {[%emt 0:00:11]} Qf4+ {[%emt 0:02:15]} 57. Kg2 {[%emt 0:02:16]} Qg4+ {[%emt 0:00:19]} 58. Kf2 {[%emt 0:00:36]} Qf4+ {[%emt 0:00:05]} 1/2-1/2

[Event "WSTCC-50 2020"]
[Site "Prague"]
[Date "2020.03.07"]
[Round "2.36"]
[White "Gattermayer, Robert"]
[Black "Koehler, Gerhard"]
[Result "1/2-1/2"]
[ECO "B26"]
[WhiteElo "1979"]
[BlackElo "2204"]
[Annotator "ChessBase"]
[PlyCount "146"]
[EventDate "2020.03.06"]
[EventType "team-tourn"]
[EventCountry "CZE"]
[SourceTitle "playchess.com"]
[Source "ChessBase"]
[SourceQuality "1"]
[TimeControl "40/5400+30:1800+30"]

1. e4 {[%emt 0:00:00]} c5 {[%emt 0:00:00]} 2. Nc3 {[%emt 0:00:00]} Nc6 {[%emt 0:00:00]} 3. d3 {[%emt 0:00:00]} g6 {[%emt 0:01:04]} 4. g3 {[%emt 0:00:08]} Bg7 {[%emt 0:00:16]} 5. Bg2 {[%emt 0:00:15]} d6 {[%emt 0:00:31]} 6. Be3 {[%emt 0:00:12]} Nf6 {[%emt 0:00:46]} 7. h3 {[%emt 0:01:09]} Rb8 {[%emt 0:02:09]} 8. Qd2 {[%emt 0:00:32]} Nd4 {[%emt 0:02:30]} 9. Nce2 {[%emt 0:03:08]} Nc6 {[%emt 0:07:27]} 10. c3 {[%emt 0:08:04]} O-O {[%emt 0:01:46]} 11. Bh6 {[%emt 0:00:29]} e5 {[%emt 0:05:36]} 12. Nf3 {[%emt 0:00:44]} d5 {[%emt 0:03:27]} 13. Bxg7 {[%emt 0:01:56]} Kxg7 {[%emt 0:00:08]} 14. exd5 {[%emt 0:01:02]} Nxd5 {[%emt 0:01:09]} 15. O-O {[%emt 0:00:59]} f6 {[%emt 0:01:26]} 16. Rad1 {[%emt 0:00:47]} Be6 {[%emt 0:00:45]} 17. c4 {[%emt 0:00:46]} Nde7 {[%emt 0:01:12]} 18. Kh2 {[%emt 0:01:43]} Qc7 {[%emt 0:03:28]} 19. a3 {[%emt 0:00:52]} Rbd8 {[%emt 0:00:11]} 20. Qc2 {[%emt 0:00:56]} Rd7 {[%emt 0:03:34]} 21. Qb1 {[%emt 0:00:20]} Qb6 {[%emt 0:04:35]} 22. b3 {[%emt 0:05:15]} Rfd8 {[%emt 0:01:57]} 23. Nc3 {[%emt 0:04:07]} Qa5 {[%emt 0:05:44]} 24. Na4 {[%emt 0:05:36]} Bf5 {[%emt 0:04:29]} 25. Ne1 {[%emt 0:01:02]} h5 {[%emt 0:00:33]} 26. f3 {[%emt 0:03:50]} Be6 {[%emt 0:05:08]} 27. Nc2 {[%emt 0:03:33]} Rxd3 {[%emt 0:02:34]} 28. Rxd3 {[%emt 0:02:17]} Rxd3 {[%emt 0:00:10]} 29. Nb4 {[%emt 0:01:44]} Rd6 {[%emt 0:03:25]} 30. Nd3 {[%emt 0:01:17]} b6 {[%emt 0:03:39]} 31. Rd1 {[%emt 0:19:10]} Rd4 {[%emt 0:04:26]} 32. Qc2 {[%emt 0:02:22]} Qa6 {[%emt 0:01:34]} 33. g4 {[%emt 0:00:58]} Qc8 {[%emt 0:01:21]} 34. Nc3 {[%emt 0:02:33]} Qh8 {[%emt 0:02:45]} 35. Kg1 {[%emt 0:02:29]} Qh6 {[%emt 0:00:45]} 36. Qe2 {[%emt 0:01:01]} Bf7 {[%emt 0:01:34]} 37. Ne4 {[%emt 0:00:48]} g5 {[%emt 0:03:58]} 38. Ndf2 {[%emt 0:04:17]} Ng6 {[%emt 0:03:32]} 39. Nd6 {[%emt 0:00:46]} Be6 {[%emt 0:01:09]} 40. Rxd4 {[%emt 0:00:00]} Nxd4 {[%emt 0:00:00]} 41. Qe4 {[%emt 0:00:45]} Kg8 {[%emt 0:08:48]} 42. Ne8 {[%emt 0:04:13]} Nf8 {[%emt 0:12:08]} 43. Qb7 {[%emt 0:00:36]} f5 {[%emt 0:10:55]} 44. gxh5 {[%emt 0:00:41]} Bf7 {[%emt 0:00:32]} 45. Qe7 {[%emt 0:03:05]} Bxe8 {[%emt 0:05:44]} 46. Qxe8 {[%emt 0:00:15]} Ne2+ {[%emt 0:00:41]} 47. Kh2 {[%emt 0:02:40]} Qd6 {[%emt 0:00:27]} 48. h6 {[%emt 0:00:34]} e4+ {[%emt 0:05:41]} 49. Kh1 {[%emt 0:02:54]} Qxh6 {[%emt 0:00:14]} 50. fxe4 {[%emt 0:01:20]} g4 {[%emt 0:01:19]} 51. Qd8 {[%emt 0:02:04]} Qc1+ {[%emt 0:03:27]} 52. Qd1 {[%emt 0:00:43]} Qxd1+ {[%emt 0:00:26]} 53. Nxd1 {[%emt 0:00:02]} gxh3 {[%emt 0:00:14]} 54. Bxh3 {[%emt 0:00:24]} fxe4 {[%emt 0:00:07]} 55. Bg2 {[%emt 0:04:40]} Ne6 {[%emt 0:01:41]} 56. Kh2 {[%emt 0:01:56]} Ng5 {[%emt 0:00:53]} 57. Bf1 {[%emt 0:01:54]} Nd4 {[%emt 0:00:38]} 58. b4 {[%emt 0:00:19]} Nc2 {[%emt 0:00:26]} 59. bxc5 {[%emt 0:00:43]} bxc5 {[%emt 0:00:02]} 60. a4 {[%emt 0:00:45]} Nf3+ {[%emt 0:00:24]} 61. Kg3 {[%emt 0:01:31]} Nd2 {[%emt 0:00:16]} 62. Be2 {[%emt 0:03:25]} Kf7 {[%emt 0:00:57]} 63. Kf4 {[%emt 0:00:57]} Ke6 {[%emt 0:00:22]} 64. Nc3 {[%emt 0:00:18]} Nd4 {[%emt 0:00:49]} 65. Bg4+ {[%emt 0:00:22]} Kd6 {[%emt 0:00:19]} 66. Nxe4+ {[%emt 0:00:11]} Nxe4 {[%emt 0:00:13]} 67. Kxe4 {[%emt 0:00:04]} Kc6 {[%emt 0:00:41]} 68. Ke5 {[%emt 0:01:26]} a5 {[%emt 0:01:18]} 69. Bh5 {[%emt 0:00:38]} Nc2 {[%emt 0:00:55]} 70. Be8+ {[%emt 0:00:41]} Kb6 {[%emt 0:00:02]} 71. Ke4 {[%emt 0:01:25]} Nb4 {[%emt 0:00:26]} 72. Ke5 {[%emt 0:00:31]} Kc7 {[%emt 0:01:00]} 73. Bb5 {[%emt 0:00:44]} Kd8 1/2-1/2